[Event "ChessKid Cup Div-I 2023"]
[Site "Online"]
[Date "2023.05.26"]
[Round "4.1"]
[White "Abdusattorov, Nodirbek"]
[Black "Caruana, Fabiano"]
[Result "1/2-1/2"]
[ECO "D38"]
[WhiteElo "2731"]
[BlackElo "2764"]
[Annotator "TA"]
[PlyCount "137"]
[EventDate "2023.05.21"]
[EventType "k.o."]
[EventCountry "NET"]
[SourceTitle "playchess.com"]
[Source "ChessBase"]
[SourceQuality "1"]
[TimeControl "900+3"]

{[%evp 9,137,18,27,-4,15,-13,-19,-16,-12,-21,-12,-15,-12,-7,-14,-6,-7,-20,-23,-23,-21,-26,-29,-30,-25,-25,-24,-20,-4,-11,-7,0,0,0,0,0,8,0,0,-15,0,-67,-24,-52,-56,-67,-52,-116,-107,-218,-230,-203,-200,-205,-212,-229,-218,-221,-208,-275,-211,-199,-185,-268,-277,-321,-302,-310,-321,-322,-311,-552,-555,-555,-555,-551,-543,-541,-528,-530,-512,-476,-257,-258,-264,-264,-257,-240,0,0,0,0,0,0,0,0,0,0,0,0,0,0,0,0,0,0,0,0,0,0,0,0,0,0,0,0,0,0,0,0,0,0,0,0,0,0,0,0,0,0]} 1. d4 {[%emt 0:00:03]} Nf6 {[%emt 0:00:05]} 2. c4 {[%emt 0:00:02]} e6 {[%emt 0:00:01]} 3. Nf3 {[%emt 0:00:05]} d5 {[%emt 0:00:02]} 4. Nc3 {[%emt 0:00:01]} Bb4 {[%emt 0:00:02]} 5. Bg5 {[%emt 0:00:03]} (5. cxd5 exd5 6. Bg5 h6 7. Bh4 O-O 8. e3 Bf5 9. Ne5 c5 10. Be2 cxd4 11. Qxd4 Qb6 12. Qxb6 axb6 13. Bxf6 gxf6 14. Nd3 Bxd3 15. Bxd3 {½-½ Abdusattorov,N (2713)-Caruana,F (2766) Tata Steel-A 85th 2023 (2)}) 5... h6 {[%emt 0:00:03]} 6. Bd2 {[%emt 0:00:00] D38: Queen's Gambit Declined: Ragozin Defence (4 Nf3 Bb4).} (6. Qa4+ {is more complex.} Nc6 7. Bxf6 Qxf6 8. e3) 6... Nbd7 {[%emt 0:00:22] [#]} 7. Rc1 $146 {[%emt 0:00:24]} ({Predecessor:} 7. e3 b6 8. cxd5 exd5 9. Bd3 Bb7 10. O-O O-O 11. Rc1 a6 12. Ne5 Bd6 13. f4 c5 {1-0 Ter Sahakyan,S (2640)-Xu,Y (2527) RBI op Qualifier 2 blitz 2020 (10)}) 7... c6 {[%emt 0:00:18]} 8. e3 {[%emt 0:00:12]} O-O {[%emt 0:00:06]} 9. Bd3 {[%emt 0:01:58]} Bd6 {[%emt 0:00:51]} 10. b3 {[%emt 0:00:07]} b6 {[%emt 0:00:25]} 11. O-O {[%emt 0:00:03]} Bb7 {[%emt 0:00:03]} 12. Qc2 {[%emt 0:00:13]} Re8 {[%emt 0:00:18]} 13. Rfe1 {[%emt 0:00:39]} dxc4 {[%emt 0:00:40]} 14. bxc4 {[%emt 0:00:04]} c5 {[%emt 0:00:19]} 15. Ne4 {[%emt 0:00:40]} Nxe4 {[%emt 0:01:30]} 16. Bxe4 {[%emt 0:00:00]} Bxe4 {[%emt 0:00:01]} 17. Qxe4 {[%emt 0:00:02]} e5 {[%emt 0:00:07]} 18. Qc6 {[%emt 0:01:28]} Qe7 {[%emt 0:01:59] And now ...e4 would win.} 19. Bc3 {[%emt 0:00:03]} e4 {[%emt 0:00:26]} 20. Nd2 {[%emt 0:00:04][%cal Od2e4]} Rac8 {[%emt 0:00:04]} 21. Qa4 {[%emt 0:00:03]} Nf6 {[%emt 0:00:27]} 22. h3 {[%emt 0:01:07]} Nh7 {[%emt 0:01:08]} 23. d5 {[%emt 0:01:27]} f5 {[%emt 0:00:23]} 24. Nf1 {[%emt 0:00:15]} Rf8 {[%emt 0:00:07]} 25. Ng3 {[%emt 0:00:16]} (25. Qd1 $11) 25... Rf7 {[%emt 0:00:10]} 26. Qd1 {[%emt 0:01:10]} (26. Nh5 {keeps more tension.} Qg5 27. Qd1 Qh4 28. Qe2) 26... Qh4 {[%emt 0:00:10]} 27. Rc2 {[%emt 0:02:40]} Rcf8 {[%emt 0:01:42]} 28. Rf1 {[%emt 0:00:14]} (28. Nh5 $15) 28... Ng5 $1 $17 {[%emt 0:00:39]} ({Don't play} 28... Bxg3 $6 29. fxg3 Qxg3 30. Qe1 $11) 29. Be1 {[%emt 0:00:08]} ({Not} 29. Qe1 $2 f4 30. exf4 Bxf4 $19) (29. Re1 $17) 29... f4 $19 {[%emt 0:00:34][%cal Bf5f4,Bf4e3][%mdl 32]} 30. Qh5 {[%emt 0:02:20]} Qxh5 {[%emt 0:00:02]} 31. Nxh5 {[%emt 0:00:00] [#]} fxe3 {[%emt 0:00:46]} 32. h4 {[%emt 0:00:01] White is weak on the dark squares} Nh7 {[%emt 0:00:02]} 33. f3 {[%emt 0:00:03]} exf3 {[%emt 0:01:16]} 34. gxf3 {[%emt 0:00:00]} Rxf3 {[%emt 0:00:28]} 35. Rxf3 {[%emt 0:00:00]} Rxf3 {[%emt 0:00:02]} 36. Re2 {[%emt 0:00:27]} (36. Kg2 $142 Rf5 37. Ng3) 36... g5 {[%emt 0:00:23][%cal Bg7g5,Bg5g4][%mdl 32]} 37. Kg2 {[%emt 0:00:15]} g4 {[%emt 0:00:01]} 38. Bg3 {[%emt 0:00:07]} Bxg3 {[%emt 0:00:06]} 39. Nxg3 {[%emt 0:00:01][%mdl 4096] Endgame KRN-KRN} Nf6 {[%emt 0:00:14][%cal Ob6b5]} 40. Nf1 $2 {[%emt 0:00:00]} (40. a4 {keeps fighting.}) 40... Nh5 {[%emt 0:00:20]} 41. Rxe3 {[%emt 0:00:03]} Nf4+ {[%emt 0:00:01]} 42. Kg1 {[%emt 0:00:01]} Nh3+ {[%emt 0:00:01]} 43. Kg2 {[%emt 0:00:02]} Rf2+ {[%emt 0:00:01][%mdl 64] Deflection} 44. Kg3 {[%emt 0:00:01][%cal Od5d6]} Rxf1 {[%emt 0:00:01]} 45. Kxg4 {[%emt 0:00:12] KRN-KR} Nf4 {[%emt 0:00:02]} (45... Nf2+ $142 46. Kh5 Nd1) 46. d6 {[%emt 0:00:07] Threatens to win with d7.} Kf7 {[%emt 0:00:21]} 47. d7 {[%emt 0:00:05] [#]} Rd1 $1 {[%emt 0:00:01]} 48. Kxf4 {[%emt 0:00:01] [#]} Rxd7 $2 {[%emt 0:00:01] KR-KR} (48... Kf6 $1 $19 49. Kg4 Rxd7) 49. Kf5 $1 $11 {[%emt 0:00:08] The position is equal.} Rd4 {[%emt 0:00:02][%csl LRc4,LRh4]} 50. Ra3 $1 {[%emt 0:00:00]} a5 {[%emt 0:00:06]} 51. Rb3 {[%emt 0:00:00]} Rxc4 {[%emt 0:00:06] Hoping for ...Rb4.} 52. Rxb6 {[%emt 0:00:02]} Rxh4 {[%emt 0:00:00]} 53. Rb7+ {[%emt 0:00:02]} Ke8 {[%emt 0:00:01] ...c4 would be deadly.} 54. Ke6 {[%emt 0:00:07][%cal Rb7b8]} Kd8 {[%emt 0:00:02] Strongly threatening ...c4.} 55. Kd6 {[%emt 0:00:01][%cal Rb7b8]} Kc8 {[%emt 0:00:09] Prevents Rb8+} 56. Rc7+ {[%emt 0:00:01]} Kb8 {[%emt 0:00:03]} 57. Rxc5 {[%emt 0:00:01]} a4 {[%emt 0:00:03]} 58. a3 {[%emt 0:00:03]} Rd4+ {[%emt 0:00:08]} 59. Kc6 {[%emt 0:00:02]} Rg4 {[%emt 0:00:02]} 60. Rh5 {[%emt 0:00:10]} Rg6+ {[%emt 0:00:02]} 61. Kd7 {[%emt 0:00:05]} Kb7 {[%emt 0:00:03]} 62. Rh4 {[%emt 0:00:01]} Ra6 {[%emt 0:00:04]} 63. Rb4+ {[%emt 0:00:00]} Ka7 {[%emt 0:00:01]} 64. Kc7 {[%emt 0:00:01]} Ra5 {[%emt 0:00:03]} 65. Rb7+ {[%emt 0:00:03]} Ka8 {[%emt 0:00:01]} 66. Rb8+ {[%emt 0:00:02]} Ka7 {[%emt 0:00:01]} 67. Rb7+ {[%emt 0:00:01]} Ka8 {[%emt 0:00:01]} 68. Rb8+ {[%emt 0:00:01]} Ka7 {[%emt 0:00:01] ( -> ...Rc5+)} 69. Rb7+ {[%emt 0:00:01] Black had all chances to win.   Weighted Error Value: White=0.20 (precise) /Black=0.14 (very precise)} 1/2-1/2

[Event "ChessKid Cup Div-I 2023"]
[Site "Online"]
[Date "2023.05.26"]
[Round "4.2"]
[White "Caruana, Fabiano"]
[Black "Abdusattorov, Nodirbek"]
[Result "0-1"]
[ECO "B51"]
[WhiteElo "2764"]
[BlackElo "2731"]
[Annotator "TA"]
[PlyCount "124"]
[EventDate "2023.05.21"]
[EventType "k.o."]
[EventCountry "NET"]
[SourceTitle "playchess.com"]
[Source "ChessBase"]
[SourceQuality "1"]
[TimeControl "900+3"]

{[%evp 12,124,28,24,25,19,31,21,39,49,39,33,42,31,57,37,72,35,41,28,39,21,26,41,45,43,26,0,16,0,0,0,0,0,10,6,62,58,100,88,99,66,127,106,110,74,73,-2,-2,-12,-15,-17,-25,-46,-47,-47,-48,-48,-48,-49,-50,-59,-50,-215,-220,-228,-219,-212,-219,-222,-226,-212,-195,-204,-192,-298,-288,-361,-338,-331,-322,-499,-510,-556,-551,-672,-629,-663,-655,-796,-741,-856,-832,-797,-776,-772,-772,-772,-772,-771,-771,-766,-737,-719,-708,-740,-731,-4152,-4152,-4152,-4145,-4145,-4145,-4141,-4137]} 1. e4 {[%emt 0:00:04] Psakhis,Lev} c5 {[%emt 0:00:07]} 2. Nf3 {[%emt 0:00:01]} Nc6 {[%emt 0:00:02]} 3. Bb5 {[%emt 0:00:02]} d6 {[%emt 0:00:01]} 4. O-O {[%emt 0:00:04]} Bd7 {[%emt 0:00:02]} 5. Re1 {[%emt 0:00:02]} Nf6 {[%emt 0:00:05]} 6. c3 {[%emt 0:00:08]} a6 {[%emt 0:00:02]} 7. Ba4 {[%emt 0:00:04]} b5 {[%emt 0:00:24] B51: Sicilian: Moscow Variation (3 Bb5+) without 3...Bd7.} 8. Bc2 {[%emt 0:00:01]} Rc8 {[%emt 0:00:06]} 9. a4 {[%emt 0:02:18]} g6 {[%emt 0:00:17] The position is equal.} 10. axb5 {[%emt 0:00:43]} axb5 {[%emt 0:00:02]} 11. d4 {[%emt 0:00:14]} cxd4 {[%emt 0:00:00]} 12. cxd4 {[%emt 0:00:01]} Bg4 {[%emt 0:00:01] [#]} 13. Be3 $146 {[%emt 0:00:33]} ({Predecessor:} 13. Nc3 b4 14. Ne2 Bg7 15. d5 Bxf3 16. gxf3 Ne5 17. Ba4+ Nfd7 18. Nd4 O-O 19. f4 {0-1 Adams,M (2731)-Kasimdzhanov,R (2652) FIDE-Wch k.o. 2004 (7.7)}) 13... Bg7 {[%emt 0:00:13]} 14. Nbd2 {[%emt 0:00:10]} O-O {[%emt 0:01:27]} 15. h3 {[%emt 0:00:03]} Bd7 {[%emt 0:00:00]} 16. d5 {[%emt 0:00:47]} Nb4 {[%emt 0:00:29]} 17. Bb1 {[%emt 0:00:02]} Ra8 $1 {[%emt 0:00:01]} 18. Rxa8 {[%emt 0:00:22]} Qxa8 {[%emt 0:00:00]} 19. Bd4 {[%emt 0:00:07]} Rc8 {[%emt 0:00:13]} 20. Nf1 {[%emt 0:00:34]} Qa4 {[%emt 0:01:49]} 21. Ne3 {[%emt 0:00:56]} Qxd1 {[%emt 0:00:27]} 22. Rxd1 {[%emt 0:00:00]} Bh6 {[%emt 0:00:15]} 23. g4 {[%emt 0:01:38] aiming for g5.} Bxe3 {[%emt 0:00:37]} (23... Bg7 $11) 24. Bxe3 $14 {[%emt 0:00:00]} Nc2 {[%emt 0:00:00]} 25. Bh6 {[%emt 0:00:41]} b4 {[%emt 0:00:32]} (25... Nxe4 $2 26. Rc1 $18) 26. e5 {[%emt 0:00:09]} dxe5 {[%emt 0:03:28]} ({Black should try} 26... Ne8 $1 $14) 27. Nxe5 $16 {[%emt 0:00:03]} Ba4 {[%emt 0:00:01][%cal Oc2a3]} 28. d6 {[%emt 0:03:25]} (28. Bxc2 {simplifies} Bxc2 29. Rd4 Re8 30. Nc6) 28... Na3 {[%emt 0:00:38][%mdl 64] [#] Discovered Attack} 29. Rd4 {[%emt 0:01:41]} ({Much weaker is} 29. d7 Nxd7 $17) ({Better is} 29. Ba2 $1 $16 {[%cal Ra2f7]} b3 30. Bxb3 (30. d7 Nxd7 31. Bxb3 Nxe5 $14) 30... Bxb3 31. d7) 29... Nxb1 $11 {[%emt 0:00:50]} 30. dxe7 {[%emt 0:00:01]} (30. Rxb4 {simplifies} exd6 31. Rxa4 dxe5 32. Ra1) 30... Ne8 {[%emt 0:00:28] Threatening ...f6.} 31. Rxb4 {[%emt 0:00:02]} Bc2 {[%emt 0:00:32]} 32. Rd4 {[%emt 0:00:12] Rd8 is the strong threat.} Rc7 {[%emt 0:00:26]} 33. Rd8 {[%emt 0:00:47][%cal Rd8e8]} Rxe7 {[%emt 0:00:04]} 34. Nd7 {[%emt 0:00:02] Nf6+ would kill now.} f5 {[%emt 0:00:09]} 35. Nf6+ {[%emt 0:00:04]} Kf7 {[%emt 0:00:01]} 36. Nxh7 {[%emt 0:00:01]} g5 {[%emt 0:00:53] ...fxg4 would be deadly.} 37. Bxg5 $2 {[%emt 0:00:27] This move loses the game for White.} ({White must play} 37. f4 $1 $15) 37... Re1+ $19 {[%emt 0:00:08]} 38. Kh2 {[%emt 0:00:01] [#]} f4 $1 {[%emt 0:00:24][%mdl 512]} 39. Rd7+ {[%emt 0:00:05]} (39. Bxf4 Bxh7) 39... Kg8 {[%emt 0:00:01]} 40. Bxf4 {[%emt 0:00:17]} ({Much worse is} 40. Nf6+ Nxf6 41. Rd8+ (41. Bxf6 {is a self mate.} Be4 42. f3 Bxf3 43. Rd8+ Kf7 44. Rd7+ Kxf6 45. Rd6+ Ke5) 41... Kf7 42. Bxf4 Re2 $19) 40... Bxh7 {[%emt 0:00:00]} 41. Kg3 {[%emt 0:00:05]} Nf6 {[%emt 0:00:07] Prevents f3} 42. Rd8+ {[%emt 0:00:04]} Kf7 {[%emt 0:00:01]} 43. Be3 {[%emt 0:00:02]} (43. f3 {might work better.}) 43... Re2 {[%emt 0:00:18]} 44. Rb8 {[%emt 0:00:06]} Nd2 {[%emt 0:00:02]} 45. Rb7+ {[%emt 0:00:01]} Ke8 {[%emt 0:00:20]} 46. g5 {[%emt 0:00:03]} (46. Rb8+ {was worth a try.} Ke7 47. Bxd2 Rxd2 48. f3) 46... Nf1+ {[%emt 0:00:27] Black is clearly winning.} 47. Kf4 {[%emt 0:00:07]} Nxe3 {[%emt 0:00:14]} 48. fxe3 {[%emt 0:00:03]} Nd7 {[%emt 0:00:08]} 49. h4 {[%emt 0:00:02]} Bg6 {[%emt 0:00:06]} 50. b4 {[%emt 0:00:01]} Ke7 {[%emt 0:00:07]} 51. Ra7 {[%emt 0:00:03]} Rb2 {[%emt 0:00:01]} 52. Rb7 {[%emt 0:00:01]} Bh5 {[%emt 0:00:07]} 53. e4 {[%emt 0:00:03]} Ke6 {[%emt 0:00:06]} 54. Ke3 {[%emt 0:00:05]} Rh2 {[%emt 0:00:05]} 55. Ra7 {[%emt 0:00:04]} Rxh4 {[%emt 0:00:03]} 56. Ra6+ {[%emt 0:00:00]} Ke7 {[%emt 0:00:03]} 57. Rh6 {[%emt 0:00:01]} Rh3+ {[%emt 0:00:08]} 58. Kd4 {[%emt 0:00:03]} Bg4 {[%emt 0:00:01] Hoping for ...Be6.} 59. b5 {[%emt 0:00:01]} Rb3 {[%emt 0:00:03]} 60. Kc4 {[%emt 0:00:04]} Rb1 {[%emt 0:00:02]} 61. Rh7+ {[%emt 0:00:08]} Kd6 {[%emt 0:00:01]} 62. Rh6+ {[%emt 0:00:01]} Be6+ {[%emt 0:00:01] Weighted Error Value: White=0.32/Black=0.08 (flawless)} 0-1

[Event "ChessKid Cup Div-I 2023"]
[Site "Online"]
[Date "2023.05.26"]
[Round "4.3"]
[White "Abdusattorov, Nodirbek"]
[Black "Caruana, Fabiano"]
[Result "0-1"]
[ECO "D38"]
[WhiteElo "2731"]
[BlackElo "2764"]
[Annotator "TA"]
[PlyCount "93"]
[EventDate "2023.05.21"]
[EventType "k.o."]
[EventCountry "NET"]
[SourceTitle "playchess.com"]
[Source "ChessBase"]
[SourceQuality "1"]
[TimeControl "900+3"]

{[%evp 12,93,0,0,0,0,29,10,29,49,33,31,45,0,3,0,0,0,-9,-71,-9,-18,-9,-9,-9,-9,-12,-63,-80,-102,-93,-139,-45,-72,-56,-80,-81,-105,-110,-99,-105,-100,-104,-119,-116,-186,-184,-179,-133,-256,-253,-243,-220,-229,-220,-356,-213,-264,-241,-437,-418,-677,-677,-677,-150,-150,-150,-114,-111,-262,-251,-29962,-29964,-29964,-691,-626,0,-29965,-29967,-29965,-29964,-29987,-29988,-29992]} 1. d4 {[%emt 0:00:04]} Nf6 {[%emt 0:00:05]} 2. c4 {[%emt 0:00:08]} e6 {[%emt 0:00:01]} 3. Nf3 {[%emt 0:00:01]} d5 {[%emt 0:00:01]} 4. Nc3 {[%emt 0:00:00]} Bb4 {[%emt 0:00:02]} 5. Qa4+ {[%emt 0:00:01]} Nc6 {[%emt 0:00:02]} 6. a3 {[%emt 0:00:00]} Bxc3+ {[%emt 0:00:07]} 7. bxc3 {[%emt 0:00:00]} O-O {[%emt 0:00:03] D38: Queen's Gambit Declined: Ragozin Defence (4 Nf3 Bb4).} 8. Bg5 {[%emt 0:00:03]} h6 {[%emt 0:00:01]} 9. Bh4 {[%emt 0:00:02]} Ne7 $5 {[%emt 0:00:01][%mdl 4] The position is equal. A promising side line.} (9... Bd7 $5 {[%cal Rc6d4]}) 10. Bxf6 {[%emt 0:00:02]} gxf6 {[%emt 0:00:00] [#]} 11. e3 $146 {[%emt 0:00:02]} ({Predecessor:} 11. cxd5 Qxd5 12. Qc2 c5 13. Qd2 Kg7 14. e3 b6 15. Bd3 Bb7 16. e4 Qd7 17. O-O {½-½ Di Berardino,D (2471)-Mekhitarian,K (2560) BRA-ch 87th Cuiaba 2021 (7)}) 11... c5 {[%emt 0:00:05]} 12. Be2 {[%emt 0:01:09]} Bd7 {[%emt 0:00:11]} 13. Qd1 {[%emt 0:00:02]} dxc4 {[%emt 0:00:10]} 14. Bxc4 {[%emt 0:00:10]} Rc8 {[%emt 0:00:02]} 15. Ba2 {[%emt 0:03:33]} (15. Nd2 $11) 15... Qa5 {[%emt 0:00:18]} (15... cxd4 $17 16. Qxd4 Bb5) 16. O-O $11 {[%emt 0:00:04]} Bc6 {[%emt 0:01:42]} (16... Qxc3 17. Nd2 Qa5 18. Ne4 $14) 17. Nd2 {[%emt 0:00:34]} cxd4 {[%emt 0:00:03]} (17... Qxc3 18. Nc4 Be4 19. Qg4+ Bg6 20. Rfc1 $16) 18. cxd4 {[%emt 0:00:03]} Qg5 {[%emt 0:00:16][%csl Gc6][%cal Rg5g2]} (18... Qxa3 $2 19. Bxe6 Qd3 20. Bxc8 Nxc8 21. Qb3 Qxb3 22. Nxb3 $18) 19. e4 {[%emt 0:00:45]} (19. g3 $11) 19... Rfd8 {[%emt 0:03:06] Black is much more active. The white rooks are badly placed.} 20. d5 {[%emt 0:00:11]} exd5 {[%emt 0:00:33]} 21. f4 {[%emt 0:00:07]} (21. Qe2 $142) 21... Qh4 {[%emt 0:00:04]} ({Black should play} 21... Qg7 $17 22. Rf3 Kh8 23. Bxd5 (23. Rg3 Qf8 $17) 23... Nxd5) 22. Qb3 {[%emt 0:01:42]} Ng6 {[%emt 0:00:36]} (22... dxe4 23. Qxf7+ Kh8 24. Be6 (24. g3 Rg8 $17) 24... Rxd2 25. Bxc8 Nxc8 26. Qf8+ Kh7 27. Qf7+ Kh8 28. Qf8+ Kh7 29. Qf7+ Kh8 $11) (22... Qh5 {looks sharper.} 23. Rae1 dxe4 24. Nxe4 Bxe4 25. Rxe4 Rd2) 23. Rae1 {[%emt 0:00:35]} Rc7 {[%emt 0:01:19]} (23... Nxf4 {seems wilder.} 24. Re3 Qg4 25. Rf2 Nh5) 24. Re3 {[%emt 0:02:28] Hoping for Rh3.} dxe4 {[%emt 0:00:10]} (24... Nxf4 25. Rg3+ Kh7 26. Qe3) 25. Nxe4 {[%emt 0:01:07]} Bxe4 {[%emt 0:00:27]} (25... Nxf4 $6 26. Qc3 Nh5 27. g3 $14) 26. Rxe4 {[%emt 0:00:01]} Rd2 {[%emt 0:00:09] aiming for ...Qg4.} 27. Bb1 {[%emt 0:01:30]} Rc1 {[%emt 0:00:49][%mdl 64] [#] Deflection. Chess con chili.} 28. Qf3 {[%emt 0:00:01]} (28. Qg3 $17 Rdd1 29. Bd3 (29. Re8+ $2 Kg7 $19)) 28... Rxf1+ $40 {[%emt 0:00:01][%mdl 128] Black has strong attack.} 29. Qxf1 {[%emt 0:00:01]} Qh5 {[%emt 0:00:03]} (29... f5 $19 30. Re2 Rxe2 31. Qxe2 Qxf4) 30. Re8+ {[%emt 0:00:59]} (30. Re1 $17 {might work better.}) 30... Kg7 {[%emt 0:00:04]} 31. Bxg6 {[%emt 0:00:06]} Kxg6 {[%emt 0:02:26][%mdl 4096] Endgame KQR-KQR} ({And not} 31... Qc5+ 32. Kh1 fxg6 33. Qe1 $17) 32. f5+ {[%emt 0:00:01]} Kg7 {[%emt 0:00:05]} (32... Qxf5 $2 33. Rg8+ Kh7 34. Qxf5+ $18) 33. Re1 {[%emt 0:00:00]} (33. Qf3 $142 Qxf3 34. gxf3) 33... Qg4 {[%emt 0:00:19]} (33... Qh4 $142 {...Qd4+ would be deadly.} 34. Kh1 Rf2) 34. Kh1 {[%emt 0:00:02]} b5 {[%emt 0:00:19][%cal Bb7b5,Bb5a4][%mdl 32] And now ...Qh4 would win.} 35. h3 $2 {[%emt 0:00:38]} (35. Qf3 {is the only way for White.} Qxf3 36. gxf3) 35... Qg3 {[%emt 0:00:22]} 36. a4 {[%emt 0:00:06]} (36. Re4 $142 Qxa3 37. Rg4+ Kh7 38. Qxb5) 36... bxa4 {[%emt 0:01:24]} 37. Re4 {[%emt 0:00:11]} Qb3 $2 {[%emt 0:00:02]} (37... Rf2 $19 {[%cal Rf2f1] has better winning chances.} 38. Qg1 Rf4) 38. Qf4 {[%emt 0:00:04]} Rd1+ {[%emt 0:01:05]} 39. Kh2 {[%emt 0:00:01]} h5 {[%emt 0:00:14] Prevents Qg4+. Threatens to win with ...a3.} ({Of course not} 39... a3 $6 40. Qg4+ Kf8 41. Qf4 $11) 40. Rxa4 {[%emt 0:00:06]} (40. Qg3+ $17 Qxg3+ 41. Kxg3) 40... Qb6 {[%emt 0:00:03] ( -> ...Qg1+)} 41. Ra3 $2 {[%emt 0:00:14]} (41. Qg3+ $19 Kh7 42. Qf3 Qg1+ 43. Kg3 Qe1+ 44. Kh2) 41... Qg1+ {[%emt 0:00:02]} 42. Kg3 {[%emt 0:00:02]} Qe1+ {[%emt 0:00:04]} (42... Rd4 $142 43. Qf2 h4+ 44. Kf3 Rf4+ {[%mdl 64] Skewer, Deflection} 45. Kxf4 Qxf2+ 46. Ke4 Qxg2+ 47. Kd4 Qb2+ 48. Rc3 a5 49. Kc4 a4 50. Rd3 a3 51. Re3 a2 52. Re1 Qc2+ 53. Kb4 Qd2+ 54. Kb3 Qxe1 55. Kxa2 Qg3 56. Kb1 Qxh3 57. Kc2 Qf3 58. Kd2 h3 59. Kc2 h2 60. Kd2 h1=Q 61. Kc2 Qh2+ 62. Kc1 Qfh1#) 43. Kh2 {[%emt 0:00:03]} Qg1+ {[%emt 0:00:03]} (43... h4 $19 44. Qg4+ Kh6 45. Qxd1 Qxd1 46. Rxa7 Qd5) 44. Kg3 {[%emt 0:00:01] [#]} h4+ $1 {[%emt 0:00:07][%mdl 512] Black mates.} 45. Kxh4 {[%emt 0:00:05]} Rd4 {[%emt 0:00:02]} 46. Qxd4 {[%emt 0:00:12]} Qxd4+ {[%emt 0:00:02]} 47. g4 {[%emt 0:00:00] Excellently played by Caruana!   Weighted Error Value: White=0.60/Black=0.52} 0-1

[Event "ChessKid Cup Div-I 2023"]
[Site "Online"]
[Date "2023.05.26"]
[Round "4.4"]
[White "Caruana, Fabiano"]
[Black "Abdusattorov, Nodirbek"]
[Result "0-1"]
[ECO "B51"]
[WhiteElo "2764"]
[BlackElo "2731"]
[Annotator "TA"]
[PlyCount "96"]
[EventDate "2023.05.21"]
[EventType "k.o."]
[EventCountry "NET"]
[SourceTitle "playchess.com"]
[Source "ChessBase"]
[SourceQuality "1"]
[TimeControl "900+3"]

{[%evp 19,96,37,43,21,30,22,29,21,34,22,31,15,27,23,24,13,24,0,0,0,0,0,0,0,0,0,0,0,0,-18,-12,-14,-14,-6,-7,-160,-142,-180,-180,-180,-178,-228,-225,-314,-314,-318,-307,-352,-337,-330,-315,-375,-278,-271,-255,-486,-475,-474,-445,-464,-430,-1198,-984,-1204,-545,-527,-527,-341,-334,-497,-491,-29994,0,-29995,-29996,-29996,-29997,-29997,-29998]} 1. e4 {[%emt 0:00:03]} c5 {[%emt 0:00:04]} 2. Nf3 {[%emt 0:00:02]} Nc6 {[%emt 0:00:01]} 3. Bb5 {[%emt 0:00:01]} d6 {[%emt 0:00:00]} 4. O-O {[%emt 0:00:02]} Bd7 {[%emt 0:00:01]} 5. Re1 {[%emt 0:00:01]} Nf6 {[%emt 0:00:01]} 6. c3 {[%emt 0:00:02]} a6 {[%emt 0:00:01]} 7. Bf1 {[%emt 0:00:02]} Bg4 {[%emt 0:00:01]} 8. h3 {[%emt 0:00:01]} Bxf3 {[%emt 0:00:02]} 9. Qxf3 {[%emt 0:00:01]} g6 {[%emt 0:00:00]} 10. d3 {[%emt 0:00:09]} Bg7 {[%emt 0:00:01]} 11. Nd2 {[%emt 0:00:07] B51: Sicilian: Moscow Variation (3 Bb5+) without 3...Bd7.} O-O {[%emt 0:00:03]} 12. Qd1 {[%emt 0:00:01]} Rc8 $5 {[%emt 0:00:11][%mdl 4] Leaves trodden paths.} 13. Nf3 {[%emt 0:00:04] [#] White has an edge.} e6 $146 {[%emt 0:00:12]} ({Predecessor:} 13... Nd7 14. Be3 Qc7 15. d4 cxd4 16. cxd4 Qb8 17. Qd2 Rfe8 18. Rac1 Nf6 19. d5 Na7 {0-1 Areshchenko,A (2674)-Kislinsky,A (2482) Lvov Bank op rapid 2016 (4)}) 14. a3 {[%emt 0:00:50]} Re8 {[%emt 0:00:37]} 15. g3 {[%emt 0:00:17]} Nd7 {[%emt 0:00:07]} 16. h4 {[%emt 0:00:12]} h5 {[%emt 0:00:21]} 17. Bg5 {[%emt 0:01:11]} Bf6 {[%emt 0:00:25]} 18. d4 {[%emt 0:01:30]} cxd4 {[%emt 0:01:08]} 19. cxd4 {[%emt 0:00:03]} Bxg5 {[%emt 0:00:07]} 20. hxg5 {[%emt 0:00:50]} e5 {[%emt 0:00:34]} 21. d5 {[%emt 0:03:11]} Nd4 {[%emt 0:00:13]} 22. Nxd4 {[%emt 0:00:01]} exd4 {[%emt 0:00:00]} 23. Bh3 {[%emt 0:00:01]} Rc4 {[%emt 0:00:01]} 24. Bxd7 {[%emt 0:00:47]} Qxd7 {[%emt 0:00:00]} 25. b3 {[%emt 0:00:01]} Rc3 {[%emt 0:00:14]} 26. Qxd4 {[%emt 0:00:03]} Rxb3 {[%emt 0:00:05]} 27. e5 $2 {[%emt 0:00:26] Black keeps a firm grip on the game.} ({Better is} 27. Re3 $11 Rxe3 28. Qxe3) 27... dxe5 $17 {[%emt 0:00:55][%mdl 64] Deflection} 28. Rxe5 {[%emt 0:00:00]} Rxe5 {[%emt 0:00:02]} 29. Qxe5 {[%emt 0:00:02][%mdl 4096] Endgame KQR-KQR} Rd3 {[%emt 0:00:02][%cal Bb3d3,Bd3d5,Bd5f5][%mdl 32]} 30. Rc1 {[%emt 0:02:09]} (30. Rb1 {was called for.}) 30... Rxd5 $19 {[%emt 0:00:17]} (30... Qxd5 $2 31. Rc8+ $18) 31. Qb8+ {[%emt 0:00:03]} Kg7 {[%emt 0:00:32]} 32. Qf4 {[%emt 0:01:02]} Qd8 {[%emt 0:01:42]} 33. Rc7 {[%emt 0:00:34]} Rf5 {[%emt 0:00:05]} (33... Qxg5 $2 {is a self mate.} 34. Qxf7+ Kh8 35. Qh7#) 34. Qc1 {[%emt 0:00:05]} Qd4 {[%emt 0:00:01] Prevents Qb2} ({Not} 34... Rxg5 35. Rxb7 Qd5 36. Rb8 $17) ({Inferior is} 34... Qxg5 35. Qc3+ Qf6 36. Qxf6+ Rxf6 37. Rxb7 $17) 35. Rc2 {[%emt 0:00:26]} Rxg5 {[%emt 0:01:12][%mdl 64] Deflection} 36. Qxg5 {[%emt 0:00:58]} Qd1+ {[%emt 0:00:03]} 37. Kh2 $2 {[%emt 0:00:04]} (37. Kg2 Qxc2 38. Qe5+ Kh7 39. Qf4 Qc6+ 40. Kh2) 37... Qxc2 {[%emt 0:00:00] KQ-KQ} 38. Qe5+ {[%emt 0:00:01]} Kh7 {[%emt 0:00:02]} 39. Qd4 {[%emt 0:00:01]} Qf5 {[%emt 0:00:29]} 40. a4 {[%emt 0:00:03]} (40. Kg1 $142 b5 41. Qd2) 40... b5 {[%emt 0:00:47] ...bxa4 would be deadly.} 41. a5 {[%emt 0:00:03] [#]} b4 $1 {[%emt 0:00:02][%mdl 64] Deflection} 42. Qxb4 {[%emt 0:00:38]} (42. Qe3 Qxa5) 42... Qxf2+ {[%emt 0:00:02]} 43. Kh3 {[%emt 0:00:01]} g5 {[%emt 0:00:11][%cal Bg6g5,Bg5g4][%mdl 32] aiming for ...Qg1.} 44. Qb7 {[%emt 0:00:29]} (44. Qb6 $142 Qe2 45. Qd8) 44... Kg7 {[%emt 0:01:59] ...Qe2 is the strong threat.} 45. Qxa6 {[%emt 0:00:16] [#]} (45. Qb6 $19 Qe2 46. Qb7 Qf1+ 47. Kh2) 45... g4+ $1 {[%emt 0:00:05]} 46. Kh4 {[%emt 0:00:01][%cal Oa6d6] [#]} f6 $1 {[%emt 0:00:00][%cal Rf2h2] Black mates.} 47. Qb7+ {[%emt 0:00:15]} Kh6 {[%emt 0:00:03][%cal Rf2h2]} 48. Qh1 {[%emt 0:00:04]} Qd2 {[%emt 0:00:02] Weighted Error Value: White=0.61/Black=0.06 (flawless)} 0-1